fUSD/lending_fUSD_20250209
["ID","MTS","AMOUNT","RATE_DAILY","PERIOD"]
[352448340,1739111487783,-486.764883,0.00012329,2]
[352448341,1739111487794,-486.764883,0.00012329,2]
[352448342,1739111487803,-762.956412,0.00012329,2]
[352448343,1739111487813,-486.764883,0.00012329,2]
[352448344,1739111487823,-762.956412,0.00012329,2]
[352448345,1739111487832,-486.764883,0.00012329,2]
[352448346,1739111487842,-486.764883,0.00012329,2]
[352448347,1739111487851,-762.956412,0.00012329,2]
[352448348,1739111487863,-486.764883,0.00012329,2]
[352448349,1739111487873,-762.956412,0.00012329,2]
[352448350,1739111487883,-486.764883,0.00012329,2]
[352448351,1739111487893,-762.956412,0.00012329,2]
[352448352,1739111487903,-762.956412,0.00012329,2]
[352448353,1739111487913,-762.956412,0.00012329,2]
[352448354,1739111487922,-762.956412,0.00012329,2]
[352448355,1739111487933,-151.0,0.00012329,2]
[352448356,1739111487943,-151.0,0.00012329,2]
[352448357,1739111487953,-151.0,0.00012329,2]
[352448358,1739111487963,-151.0,0.00012329,2]
[352448359,1739111487973,-201.207924,0.00012329,2]
[352448360,1739111487983,-151.0,0.00012329,2]
[352448361,1739111487993,-176.740971,0.00012329,2]
[352448362,1739111488003,-462.25,0.00012329,2]
[352448363,1739111488013,-462.25,0.00012329,2]
[352448364,1739111488022,-462.25,0.00012329,2]
[352448365,1739111488032,-462.25,0.00012329,2]
[352448366,1739111488042,-462.25,0.00012329,2]
[352448367,1739111488052,-462.25,0.00012329,2]
[352448368,1739111488062,-151.0,0.00012329,2]
[352448369,1739111488071,-151.0,0.00012329,2]
[352448370,1739111488080,-151.0,0.00012329,2]
[352448371,1739111488091,-151.0,0.00012329,2]
[352448372,1739111488101,-151.0,0.00012329,2]
[352448373,1739111488111,-151.0,0.00012329,2]
[352448374,1739111488120,-209.614751,0.00012329,2]
[352448375,1739111488129,-209.614751,0.00012329,2]
[352448376,1739111488139,-209.614751,0.00012329,2]
[352448377,1739111488148,-209.614751,0.00012329,2]
[352448378,1739111488158,-209.614751,0.00012329,2]
[352448379,1739111488167,-209.614751,0.00012329,2]
[352448380,1739111488177,-151.0,0.00012329,2]
[352448381,1739111488186,-151.0,0.00012329,2]
[352448382,1739111488196,-842.311692,0.00012329,2]
[352448383,1739111488205,-842.311692,0.00012329,2]
[352448384,1739111488215,-842.311692,0.00012329,2]
[352448385,1739111488224,-151.0,0.00012329,2]
[352448386,1739111488235,-151.0,0.00012329,2]
[352448387,1739111488245,-842.311692,0.00012329,2]
[352448388,1739111488255,-842.311692,0.00012329,2]
[352448389,1739111488265,-842.311692,0.00012329,2]
[352448390,1739111488275,-151.0,0.00012329,2]
[352448391,1739111488285,-151.0,0.00012329,2]
[352448392,1739111488295,-151.0,0.00012329,2]
[352448393,1739111488305,-151.0,0.00012329,2]
[352448394,1739111488315,-151.0,0.00012329,2]
[352448395,1739111488325,-151.0,0.00012329,2]
[352448396,1739111488335,-151.0,0.00012329,2]
[352448397,1739111488345,-303.227568,0.00012329,2]
[352448398,1739111488356,-303.227568,0.00012329,2]
[352448399,1739111488366,-303.227568,0.00012329,2]
[352448400,1739111488376,-303.227568,0.00012329,2]
[352448401,1739111488387,-303.227568,0.00012329,2]
[352448402,1739111488396,-303.227568,0.00012329,2]
[352448403,1739111488406,-151.0,0.00012329,2]
[352448404,1739111488415,-151.0,0.00012329,2]
[352448405,1739111488425,-151.0,0.00012329,2]
[352448406,1739111488435,-151.0,0.00012329,2]
[352448407,1739111488444,-151.0,0.00012329,2]
[352448408,1739111488454,-151.0,0.00012329,2]
[352448409,1739111488464,-154.12351,0.00012329,2]
[352448410,1739111488474,-154.12351,0.00012329,2]
[352448411,1739111488487,-154.12351,0.00012329,2]
[352448412,1739111488496,-154.12351,0.00012329,2]
[352448413,1739111488506,-244.571363,0.00012329,2]
[352448414,1739111488516,-244.571363,0.00012329,2]
[352448415,1739111488527,-151.0,0.00012329,2]
[352448416,1739111488536,-151.0,0.00012329,2]
[352448417,1739111488546,-290.94,0.00012329,2]
[352448418,1739111488556,-290.94,0.00012329,2]
[352448419,1739111488566,-290.94,0.00012329,2]
[352448420,1739111488576,-290.94,0.00012329,2]
[352448421,1739111488585,-252.955699,0.00012329,2]
[352448422,1739111488594,-252.955699,0.00012329,2]
[352448423,1739111488604,-252.955699,0.00012329,2]
[352448424,1739111488614,-252.955699,0.00012329,2]
[352448425,1739111488624,-151.0,0.00012329,2]
[352448426,1739111488633,-151.0,0.00012329,2]
[352448427,1739111488642,-151.0,0.00012329,2]
[352448428,1739111488651,-151.0,0.00012329,2]
[352448429,1739111488660,-162.02358,0.00012329,2]
[352448430,1739111488844,-162.02358,0.00012329,2]
[352448431,1739111488858,-162.02358,0.00012329,2]
[352448432,1739111488870,-162.02358,0.00012329,2]
[352448433,1739111488880,-663.514568,0.00012329,2]
[352448434,1739111488890,-663.514568,0.00012329,2]
[352448435,1739111488900,-663.514568,0.00012329,2]
[352448436,1739111488911,-663.514568,0.00012329,2]
[352448437,1739111488922,-151.0,0.00012329,2]
[352448438,1739111488932,-151.0,0.00012329,2]
[352448439,1739111488942,-895.449831,0.00012329,2]
[352448440,1739111488952,-895.449831,0.00012329,2]
[352448441,1739111488961,-895.449831,0.00012329,2]
[352448442,1739111488971,-895.449831,0.00012329,2]
[352448443,1739111488981,-307.705384,0.00012329,2]
[352448444,1739111488990,-307.705384,0.00012329,2]
[352448445,1739111489000,-307.705384,0.00012329,2]
[352448446,1739111489010,-307.705384,0.00012329,2]
[352448447,1739111489020,-467.342992,0.00012329,2]
[352448448,1739111489029,-467.342992,0.00012329,2]
[352448449,1739111489039,-467.342992,0.00012329,2]
[352448450,1739111489048,-467.342992,0.00012329,2]
[352448451,1739111489057,-467.342992,0.00012329,2]
[352448452,1739111489067,-467.342992,0.00012329,2]
[352448453,1739111489077,-280.167532,0.00012329,2]
[352448454,1739111489087,-280.167532,0.00012329,2]
[352448455,1739111489097,-280.167532,0.00012329,2]
[352448456,1739111489106,-280.167532,0.00012329,2]
[352448457,1739111489117,-280.167532,0.00012329,2]
[352448458,1739111489127,-280.167532,0.00012329,2]
[352448459,1739111489136,-497.355562,0.00012329,2]
[352448460,1739111489145,-497.355562,0.00012329,2]
[352448461,1739111489154,-497.355562,0.00012329,2]
[352448462,1739111489164,-497.355562,0.00012329,2]
[352448463,1739111489173,-151.0,0.00012329,2]
[352448464,1739111489182,-151.0,0.00012329,2]
[352448465,1739111489192,-154.950951,0.00012329,2]
[352448466,1739111489202,-151.0,0.00012329,2]
[352448467,1739111489212,-151.0,0.00012329,2]
[352448468,1739111489222,-230.558823,0.00012329,2]
[352448469,1739111489232,-230.558823,0.00012329,2]
[352448470,1739111489242,-151.0,0.00012329,2]
[352448471,1739111489252,-151.0,0.00012329,2]
[352448472,1739111489262,-230.558823,0.00012329,2]
[352448473,1739111489273,-230.558823,0.00012329,2]
[352448474,1739111489283,-151.0,0.00012329,2]
[352448475,1739111489292,-151.0,0.00012329,2]
[352448476,1739111489301,-151.0,0.00012329,2]
[352448477,1739111489311,-151.0,0.00012329,2]
[352448478,1739111489321,-196.350197,0.00012329,2]
[352448479,1739111489330,-151.0,0.00012329,2]
[352448480,1739111489340,-176.960047,0.00012329,2]
[352448481,1739111489350,-176.960047,0.00012329,2]
[352448482,1739111489360,-176.960047,0.00012329,2]
[352448483,1739111489369,-176.960047,0.00012329,2]
[352448484,1739111489378,-155.378109,0.00012329,2]
[352448485,1739111489387,-155.378109,0.00012329,2]
[352448486,1739111489397,-457.606994,0.00012329,2]
[352448487,1739111489407,-457.606994,0.00012329,2]
[352448488,1739111489417,-457.606994,0.00012329,2]
[352448489,1739111489426,-457.606994,0.00012329,2]
[352448490,1739111489436,-457.606994,0.00012329,2]
[352448491,1739111489445,-457.606994,0.00012329,2]
[352448492,1739111489455,-364.840937,0.00012329,2]
[352448493,1739111489465,-364.840937,0.00012329,2]
[352448494,1739111489476,-364.840937,0.00012329,2]
[352448495,1739111489490,-364.840937,0.00012329,2]
[352448496,1739111489500,-286.86821,0.00012329,2]
[352448497,1739111489510,-286.86821,0.00012329,2]
[352448498,1739111489520,-286.86821,0.00012329,2]
[352448499,1739111489530,-286.86821,0.00012329,2]
[352448500,1739111489540,-691.552167,0.00012329,2]
[352448501,1739111489550,-691.552167,0.00012329,2]
[352448502,1739111489562,-691.552167,0.00012329,2]
[352448503,1739111489573,-691.552167,0.00012329,2]
[352448504,1739111489583,-719.28095,0.00012329,2]
[352448505,1739111489592,-719.28095,0.00012329,2]
[352448506,1739111489602,-719.28095,0.00012329,2]
[352448507,1739111489612,-719.28095,0.00012329,2]
[352448508,1739111489621,-476.073194,0.00012329,2]
[352448509,1739111489632,-476.073194,0.00012329,2]
[352448510,1739111489643,-151.0,0.00012329,2]
[352448511,1739111489653,-151.0,0.00012329,2]
[352448512,1739111489664,-151.0,0.00012329,2]
[352448513,1739111489673,-151.0,0.00012329,2]
[352448514,1739111489683,-151.0,0.00012329,2]
[352448515,1739111489693,-151.0,0.00012329,2]
[352448516,1739111489703,-338.594007,0.00012329,2]
[352448517,1739111489712,-338.594007,0.00012329,2]
[352448518,1739111489722,-166.333187,0.00012329,2]
[352448519,1739111489732,-166.333187,0.00012329,2]
[352448520,1739111489741,-166.333187,0.00012329,2]
[352448521,1739111489751,-166.333187,0.00012329,2]
[352448522,1739111489760,-4545.602903,0.00012329,2]
[352448523,1739111489770,-4545.602903,0.00012329,2]
[352448524,1739111489780,-4545.602903,0.00012329,2]
[352448525,1739111489789,-4545.602903,0.00012329,2]
[352448526,1739111489799,-4545.602903,0.00012329,2]
[352448527,1739111489809,-4545.602903,0.00012329,2]
[352448528,1739111489819,-324.33585,0.00012329,2]
[352448529,1739111489829,-324.33585,0.00012329,2]
[352448530,1739111489839,-324.33585,0.00012329,2]
[352448531,1739111489848,-324.33585,0.00012329,2]
[352448532,1739111489858,-373.024451,0.00012329,2]
[352448533,1739111489868,-373.024451,0.00012329,2]
[352448534,1739111489877,-373.024451,0.00012329,2]
[352448535,1739111489887,-373.024451,0.00012329,2]
[352448536,1739111489896,-373.024451,0.00012329,2]
[352448537,1739111489906,-373.024451,0.00012329,2]
[352448538,1739111489916,-449.639323,0.00012329,2]
[352448539,1739111489925,-449.639323,0.00012329,2]
[352448540,1739111489934,-449.639323,0.00012329,2]
[352448541,1739111489943,-449.639323,0.00012329,2]
[352448542,1739111489954,-151.0,0.00012329,2]
[352448543,1739111489963,-151.0,0.00012329,2]
[352448544,1739111489973,-2544.434769,0.00012329,2]
[352448545,1739111489983,-2544.434769,0.00012329,2]
[352448546,1739111489993,-2544.434769,0.00012329,2]
[352448547,1739111490003,-2544.434769,0.00012329,2]
[352448548,1739111490013,-151.0,0.00012329,2]
[352448549,1739111490023,-151.0,0.00012329,2]
[352448550,1739111490033,-259.191434,0.00012329,2]
[352448551,1739111490043,-476.402173,0.00012329,2]
[352448552,1739111490053,-476.402173,0.00012329,2]
[352448553,1739111490063,-476.402173,0.00012329,2]
[352448554,1739111490073,-476.402173,0.00012329,2]
[352448555,1739111490082,-151.0,0.00012329,2]
[352448556,1739111490092,-151.0,0.00012329,2]
[352448557,1739111490102,-2507.573527,0.00012329,2]
[352448558,1739111490112,-2507.573527,0.00012329,2]
[352448559,1739111490122,-151.0,0.00012329,2]
[352448560,1739111490133,-151.0,0.00012329,2]
[352448561,1739111490143,-2507.573527,0.00012329,2]
[352448562,1739111490152,-2507.573527,0.00012329,2]
[352448563,1739111490162,-10000.0,0.00012329,2]
[352448564,1739111490172,-10000.0,0.00012329,2]
[352448565,1739111490182,-826.481489,0.00012329,2]
[352448566,1739111490192,-826.481489,0.00012329,2]
[352448567,1739111490202,-10000.0,0.00012329,2]
[352448568,1739111490211,-10000.0,0.00012329,2]
[352448569,1739111490221,-826.481489,0.00012329,2]
[352448570,1739111490231,-826.481489,0.00012329,2]
[352448571,1739111490241,-173.554477,0.00012329,2]
[352448572,1739111490251,-10000.0,0.00012329,2]
[352448573,1739111490261,-173.554477,0.00012329,2]
[352448574,1739111490271,-10000.0,0.00012329,2]
[352448575,1739111490280,-10000.0,0.00012329,2]
[352448576,1739111490290,-173.554477,0.00012329,2]
[352448577,1739111490300,-10000.0,0.00012329,2]
[352448578,1739111490310,-173.554477,0.00012329,2]
[352448579,1739111490319,-151.0,0.00012329,2]
[352448580,1739111490329,-151.0,0.00012329,2]
[352448581,1739111490339,-151.0,0.00012329,2]
[352448582,1739111490349,-151.0,0.00012329,2]
[352448583,1739111490359,-336.0,0.00012329,2]
[352448584,1739111490370,-336.0,0.00012329,2]
[352448585,1739111490380,-336.0,0.00012329,2]
[352448586,1739111490390,-435.980869,0.00012329,2]
[352448587,1739111490399,-435.980869,0.00012329,2]
[352448588,1739111490408,-336.0,0.00012329,2]
[352448589,1739111490418,-435.980869,0.00012329,2]
[352448590,1739111490428,-435.980869,0.00012329,2]
[352448591,1739111490438,-272.344256,0.00012329,2]
[352448592,1739111490448,-272.344256,0.00012329,2]
[352448593,1739111490458,-272.344256,0.00012329,2]
[352448594,1739111490467,-272.344256,0.00012329,2]
[352448595,1739111490480,-260.807386,0.00012329,2]
[352448596,1739111490491,-260.807386,0.00012329,2]
[352448597,1739111490500,-260.807386,0.00012329,2]
[352448598,1739111490510,-260.807386,0.00012329,2]
[352448599,1739111490522,-3029.871539,0.00012329,2]
[352448600,1739111490531,-3955.508375,0.00012329,2]
[352448601,1739111490541,-3029.871539,0.00012329,2]
[352448602,1739111490552,-3955.508375,0.00012329,2]
[352448603,1739111490563,-3955.508375,0.00012329,2]
[352448604,1739111490573,-3955.508375,0.00012329,2]
[352448605,1739111490582,-1686.274765,0.00012329,2]
[352448606,1739111490592,-1686.274765,0.00012329,2]
[352448607,1739111490602,-564.184907,0.00012329,2]
[352448608,1739111490611,-564.184907,0.00012329,2]
[352448609,1739111490622,-151.0,0.00012329,2]
[352448610,1739111490631,-151.0,0.00012329,2]
[352448611,1739111490641,-151.0,0.00012329,2]
[352448612,1739111490651,-198.528824,0.00012329,2]
[352448613,1739111490661,-198.528824,0.00012329,2]
[352448614,1739111490671,-198.528824,0.00012329,2]
[352448615,1739111490680,-198.528824,0.00012329,2]
[352448616,1739111490690,-486.764883,0.00012329,2]
[352448617,1739111490700,-762.956412,0.00012329,2]
[352448618,1739111490709,-762.956412,0.00012329,2]
[352448619,1739111490720,-486.764883,0.00012329,2]
[352448620,1739111490729,-762.956412,0.00012329,2]
[352448621,1739111490738,-762.956419,0.00012329,2]
[352448622,1739111490747,-510.85208158,0.00012373,2]
[352448623,1739111490756,-9062.03995358,0.00012391,2]
[352448624,1739111490765,-5000.0,0.00012391,2]
[352448625,1739111490775,-5000.0,0.00012391,2]
[352448626,1739111490784,-5000.0,0.00012391,2]
[352448627,1739111490794,-5000.0,0.00012391,2]
[352448628,1739111490805,-151.0,0.00012391,2]
[352448629,1739111490815,-286.86821,0.00012391,2]
[352448630,1739111490824,-286.86821,0.00012391,2]
[352448631,1739111490834,-691.552167,0.00012391,2]
[352448632,1739111490844,-691.552167,0.00012391,2]
[352448633,1739111490855,-151.0,0.00012391,2]
[352448634,1739111490864,-151.0,0.00012391,2]
[352448635,1739111490874,-151.0,0.00012391,2]
[352448636,1739111490883,-500.0,0.00012397,2]
[352448637,1739111490893,-500.0,0.00012397,2]
[352448638,1739111490902,-500.0,0.00012397,2]
[352448639,1739111490912,-500.0,0.00012397,2]
[352448640,1739111490922,-500.0,0.00012397,2]
[352448641,1739111490931,-500.0,0.00012397,2]
[352448642,1739111490941,-500.0,0.00012397,2]
[352448643,1739111490952,-500.0,0.00012397,2]
[352448644,1739111490962,-852.46,0.00012397,2]
[352448645,1739111490972,-500.0,0.00012397,2]
[352448646,1739111490982,-500.0,0.00012397,2]
[352448647,1739111490992,-500.0,0.00012397,2]
[352448648,1739111491002,-500.0,0.00012397,2]
[352448649,1739111491012,-500.0,0.00012397,2]
[352448650,1739111491022,-500.0,0.00012397,2]
[352448651,1739111491031,-500.0,0.00012397,2]
[352448652,1739111491041,-500.0,0.00012397,2]
[352448653,1739111491051,-500.0,0.00012397,2]
[352448654,1739111491061,-500.0,0.00012397,2]
[352448655,1739111491070,-500.0,0.00012397,2]
[352448656,1739111491079,-500.0,0.00012397,2]
[352448657,1739111491088,-500.0,0.00012397,2]
[352448658,1739111491098,-500.0,0.00012397,2]
[352448659,1739111491108,-500.0,0.00012397,2]
[352448660,1739111491118,-732.99,0.00012397,2]
[352448661,1739111491128,-682.96,0.00012397,2]
[352448662,1739111491137,-894.51,0.00012397,2]
[352448663,1739111491147,-500.0,0.00012397,2]
[352448664,1739111491157,-815.69,0.00012397,2]
[352448665,1739111491167,-500.0,0.00012397,2]
[352448666,1739111491176,-3029.871539,0.00012397,2]
[352448667,1739111491186,-581.55,0.00012397,2]
[352448668,1739111491196,-500.0,0.00012397,2]
[352448669,1739111491205,-3029.871539,0.00012397,2]
[352448670,1739111491215,-1254.78,0.00012397,2]
[352448671,1739111491225,-1686.274765,0.00012397,2]
[352448672,1739111491235,-1686.274765,0.00012397,2]
[352448673,1739111491245,-892.24,0.00012397,2]
[352448674,1739111491254,-548.43,0.00012397,2]
[352448675,1739111491265,-500.0,0.00012397,2]
[352448676,1739111491274,-500.0,0.00012397,2]
[352448677,1739111491283,-500.0,0.00012397,2]
[352448678,1739111491293,-500.0,0.00012397,2]
[352448679,1739111491303,-564.184907,0.00012397,2]
[352448680,1739111491366,-564.184907,0.00012397,2]
[352448681,1739111491375,-500.0,0.00012397,2]
[352448682,1739111491385,-870.56,0.00012397,2]
[352448683,1739111491394,-702.87,0.00012397,2]
[352448684,1739111491403,-811.17,0.00012397,2]
[352448685,1739111491412,-580.57,0.00012397,2]
[352448686,1739111491421,-500.0,0.00012397,2]
[352448687,1739111491431,-516.0,0.00012397,2]
[352448688,1739111491441,-500.0,0.00012397,2]
[352448689,1739111491450,-795.24,0.00012397,2]
[352448690,1739111491460,-500.0,0.00012397,2]
[352448691,1739111491470,-881.68,0.00012397,2]
[352448692,1739111491482,-500.0,0.00012397,2]
[352448693,1739111491492,-500.0,0.00012397,2]
[352448694,1739111491506,-670.56,0.00012397,2]
[352448695,1739111491519,-500.0,0.00012397,2]
[352448696,1739111491528,-151.0,0.00012397,2]
[352448697,1739111491538,-705.66,0.00012397,2]
[352448698,1739111491547,-1023.29,0.00012397,2]
[352448699,1739111491558,-640.81,0.00012397,2]
[352448700,1739111491567,-500.0,0.00012397,2]
[352448701,1739111491577,-500.0,0.00012397,2]
[352448702,1739111491586,-500.0,0.00012397,2]
[352448703,1739111491595,-630.98,0.00012397,2]
[352448704,1739111491605,-542.86,0.00012397,2]
[352448705,1739111491615,-582.78676519,0.00012397,2]
[352448706,1739111491635,-654.61,0.00012397,2]
[352448707,1739111491645,-521.92,0.00012397,2]
[352448708,1739111491654,-500.0,0.00012397,2]
[352448709,1739111491664,-500.0,0.00012397,2]
[352448710,1739111491673,-519.41,0.00012397,2]
[352448711,1739111491682,-500.0,0.00012397,2]
[352448712,1739111491692,-542.32,0.00012397,2]
[352448713,1739111491701,-572.6,0.00012397,2]
[352448714,1739111491710,-555.28,0.00012397,2]
[352448715,1739111491720,-500.0,0.00012397,2]
[352448716,1739111491729,-500.0,0.00012397,2]
[352448717,1739111491740,-500.0,0.00012397,2]
[352448718,1739111491749,-678.37,0.00012397,2]
[352448719,1739111491759,-500.0,0.00012397,2]
[352448720,1739111491768,-500.0,0.00012397,2]
[352448721,1739111491778,-500.0,0.00012397,2]
[352448722,1739111491787,-595.16,0.00012397,2]
[352448723,1739111491797,-500.0,0.00012397,2]
[352448724,1739111491807,-500.0,0.00012397,2]
[352448725,1739111491816,-606.91,0.00012397,2]
[352448726,1739111491826,-500.0,0.00012397,2]
[352448727,1739111491835,-500.0,0.00012397,2]
[352448728,1739111491844,-569.4,0.00012397,2]
[352448729,1739111491854,-500.0,0.00012397,2]
[352448730,1739111491863,-760.21,0.00012397,2]
[352448731,1739111491873,-500.0,0.00012397,2]
[352448732,1739111491883,-514.96,0.00012397,2]
[352448733,1739111491892,-500.0,0.00012397,2]
[352448734,1739111491902,-151.0,0.00012398,2]
[352448735,1739111491913,-2544.434769,0.00012398,2]
[352448736,1739111491922,-737.84,0.00012398,2]
[352448737,1739111491932,-2544.434769,0.00012398,2]
[352448738,1739111491941,-500.0,0.00012398,2]
[352448739,1739111491951,-500.0,0.00012398,2]
[352448740,1739111491961,-500.0,0.00012398,2]
[352448741,1739111491970,-500.0,0.00012398,2]
[352448742,1739111491980,-500.0,0.00012398,2]
[352448743,1739111491990,-500.0,0.00012398,2]
[352448744,1739111491999,-500.0,0.00012398,2]
[352448745,1739111492008,-500.0,0.00012398,2]
[352448746,1739111492017,-545.78,0.00012398,2]
[352448747,1739111492027,-525.16,0.00012398,2]
[352448748,1739111492036,-564.38,0.00012398,2]
[352448749,1739111492046,-151.0,0.00012398,2]
[352448750,1739111492055,-500.0,0.00012398,2]
[352448751,1739111492065,-2507.573527,0.00012398,2]
[352448752,1739111492074,-2507.573527,0.00012398,2]
[352448753,1739111492084,-826.481489,0.00012398,2]
[352448754,1739111492095,-826.481489,0.00012398,2]
[352448755,1739111492105,-500.0,0.00012398,2]
[352448756,1739111492116,-646.28,0.00012398,2]
[352448757,1739111492126,-500.0,0.00012398,2]
[352448758,1739111492137,-500.0,0.00012398,2]
[352448759,1739111492147,-500.0,0.00012398,2]
[352448760,1739111492157,-634.574762,0.00012398,2]
[352448761,1739111492167,-566.93,0.00012398,2]
[352448762,1739111492178,-3955.508375,0.00012398,2]
[352448763,1739111492188,-500.0,0.00012398,2]
[352448764,1739111492198,-3955.508375,0.00012398,2]
[352448765,1739111492208,-586.39284,0.00012398,2]
[352448766,1739111492218,-500.0,0.00012398,2]
[352448767,1739111492228,-993.58,0.00012398,2]
[352448768,1739111492240,-610.23,0.00012398,2]
[352448769,1739111492250,-500.0,0.00012398,2]
[352448770,1739111492260,-596.35,0.00012398,2]
[352448771,1739111492269,-618.07,0.00012398,2]
[352448772,1739111492279,-521.73,0.00012398,2]
[352448773,1739111492288,-500.0,0.00012398,2]
[352448774,1739111492298,-511.97,0.00012398,2]
[352448775,1739111492307,-500.0,0.00012398,2]
[352448776,1739111492316,-721.78,0.00012398,2]
[352448777,1739111492326,-765.52,0.00012398,2]
[352448778,1739111492336,-1295.36,0.00012398,2]
[352448779,1739111492345,-1458.2,0.00012398,2]
[352448780,1739111492355,-500.0,0.00012398,2]
[352448781,1739111492364,-648.67,0.00012398,2]
[352448782,1739111492375,-585.91,0.00012398,2]
[352448783,1739111492385,-803.01,0.00012398,2]
[352448784,1739111492394,-500.0,0.00012398,2]
[352448785,1739111492404,-500.0,0.00012398,2]
[352448786,1739111492414,-581.92,0.00012398,2]
[352448787,1739111492423,-198.528824,0.00012398,2]
[352448788,1739111492433,-198.528815,0.00012398,2]
[352448789,1739111492443,-526.62,0.00012398,2]
[352448790,1739111492452,-500.0,0.00012398,2]
[352448791,1739111492462,-500.0,0.00012398,2]
[352448792,1739111492472,-10242.54853771,0.00012399,2]
[352448793,1739111492486,-151.0,0.00012399,2]
[352448794,1739111492496,-198.186629,0.00012399,2]
[352448795,1739111492506,-176.960047,0.00012399,2]
[352448796,1739111492515,-176.960047,0.00012399,2]
[352448797,1739111492526,-155.378109,0.00012399,2]
[352448798,1739111492536,-155.378109,0.00012399,2]
[352448799,1739111492545,-719.28095,0.00012399,2]
[352448800,1739111492556,-719.28095,0.00012399,2]
[352448801,1739111492573,-166.333187,0.00012399,2]
[352448802,1739111492582,-166.333187,0.00012399,2]
[352448803,1739111492591,-4545.602903,0.00012399,2]
[352448804,1739111492601,-4545.602903,0.00012399,2]
[352448805,1739111492610,-324.33585,0.00012399,2]
[352448806,1739111492620,-324.33585,0.00012399,2]
[352448807,1739111492630,-10000.0,0.00012399,2]
[352448808,1739111492639,-10000.0,0.00012399,2]
[352448809,1739111492650,-10000.0,0.00012399,2]
[352448810,1739111492660,-10000.0,0.00012399,2]
[352448811,1739111492670,-151.0,0.000124,2]
[352448812,1739111492680,-462.25,0.00012401,2]
[352448813,1739111492690,-462.25,0.00012401,2]
[352448814,1739111492699,-151.0,0.00012401,2]
[352448815,1739111492709,-151.0,0.00012401,2]
[352448816,1739111492727,-151.630777,0.00012401,2]
[352448817,1739111492736,-151.0,0.00012401,2]
[352448818,1739111492747,-151.0,0.00012401,2]
[352448819,1739111492756,-151.0,0.00012401,2]
[352448820,1739111492766,-373.024451,0.00012401,2]
[352448821,1739111492776,-373.024451,0.00012401,2]
[352448822,1739111492786,-449.639323,0.00012401,2]
[352448823,1739111492796,-449.639323,0.00012401,2]
[352448824,1739111492806,-177.798677,0.00012401,2]
[352448825,1739111492816,-151.0,0.00012401,2]
[352448826,1739111492826,-173.554477,0.00012401,2]
[352448827,1739111492836,-173.554477,0.00012401,2]
[352448828,1739111492846,-151.0,0.00012401,2]
[352448829,1739111492854,-245.446798,0.00012401,2]
[352448830,1739111492864,-336.0,0.00012401,2]
[352448831,1739111492875,-435.980869,0.00012401,2]
[352448832,1739111492884,-336.0,0.00012401,2]
[352448833,1739111492894,-435.980869,0.00012401,2]
[352448834,1739111492903,-272.344256,0.00012401,2]
[352448835,1739111492913,-272.344256,0.00012401,2]
[352448836,1739111492922,-260.807386,0.00012401,2]
[352448837,1739111492933,-260.807386,0.00012401,2]
[352448838,1739111492943,-264.77480108,0.00012429,7]
[352448839,1739111492953,-5000.69435,0.00012447,2]